fUST/lending_fUST_20241130
["ID","MTS","AMOUNT","RATE_DAILY","PERIOD"]
[343721022,1732918253337,-500.0,0.00028767,3]
[343721023,1732918253346,-500.0,0.00028767,3]
[343721024,1732918253355,-500.0,0.00028767,3]
[343721025,1732918253365,-501.65398698,0.00028767,3]
[343721026,1732918253376,-505.93953263,0.00028767,3]
[343721027,1732918253386,-501.06230774,0.00028767,3]
[343721028,1732918253395,-500.0,0.00028767,3]
[343721029,1732918253405,-500.0,0.00028767,3]
[343721030,1732918253415,-500.0,0.00028767,3]
[343721031,1732918253424,-500.0,0.00028767,3]
[343721032,1732918253433,-510.04248118,0.00028767,3]
[343721033,1732918253443,-500.0,0.00028767,3]
[343721034,1732918253452,-500.0,0.00028767,3]
[343721035,1732918253461,-592.85802038,0.00028767,3]
[343721036,1732918253471,-501.24707796,0.00028767,3]
[343721037,1732918253484,-500.0,0.00028767,3]
[343721038,1732918253494,-500.0,0.00028767,3]
[343721039,1732918253504,-500.0,0.00028767,3]
[343721040,1732918253513,-494.20800032,0.00028767,3]
[343721041,1732918253522,-502.81227787,0.00028767,3]
[343721042,1732918253531,-500.0,0.00028767,3]
[343721043,1732918253540,-500.0,0.00028767,3]
[343721044,1732918253551,-500.0,0.00028767,3]
[343721045,1732918253562,-500.0,0.00028767,3]
[343721046,1732918253571,-151.0,0.00028767,7]
[343721047,1732918253582,-500.0,0.00028767,3]
[343721048,1732918253592,-151.0,0.00028767,7]
[343721049,1732918253601,-151.0,0.00028767,7]
[343721050,1732918253611,-500.0,0.00028767,3]
[343721051,1732918253620,-500.0,0.00028767,3]
[343721052,1732918253629,-500.0,0.00028767,3]
[343721053,1732918253638,-151.0,0.00028767,7]
[343721054,1732918253648,-500.0,0.00028767,3]
[343721055,1732918253657,-500.0,0.00028767,3]
[343721056,1732918253666,-151.0,0.00028767,7]
[343721057,1732918253675,-500.0,0.00028767,3]
[343721058,1732918253684,-151.0,0.00028767,7]
[343721059,1732918253694,-500.0,0.00028767,3]
[343721060,1732918253703,-500.0,0.00028767,3]
[343721061,1732918253712,-500.0,0.00028767,3]
[343721062,1732918253721,-151.0,0.00028767,7]
[343721063,1732918253731,-504.9668727,0.00028767,3]
[343721064,1732918253740,-500.0,0.00028767,3]
[343721065,1732918253822,-500.0,0.00028767,3]
[343721066,1732918253838,-151.0,0.00028767,7]
[343721067,1732918253848,-500.0,0.00028767,3]
[343721068,1732918253858,-151.0,0.00028767,7]
[343721069,1732918253867,-290.330658,0.00028767,7]
[343721070,1732918253876,-500.0,0.00028767,3]
[343721071,1732918253885,-500.0,0.00028767,3]
[343721072,1732918253894,-500.0,0.00028767,3]
[343721073,1732918253903,-500.0,0.00028767,3]
[343721074,1732918253912,-500.0,0.00028767,3]
[343721075,1732918253922,-500.0,0.00028767,3]
[343721076,1732918253931,-537.3170186,0.00028767,3]
[343721077,1732918253939,-500.0,0.00028767,3]
[343721078,1732918253948,-500.0,0.00028767,3]
[343721079,1732918253957,-500.0,0.00028767,3]
[343721080,1732918253966,-500.0,0.00028767,3]
[343721081,1732918253975,-500.0,0.00028767,3]
[343721082,1732918253984,-504.81842925,0.00028767,3]
[343721083,1732918253993,-500.0,0.00028767,3]
[343721084,1732918254002,-500.0,0.00028767,3]
[343721085,1732918254011,-500.0,0.00028767,3]
[343721086,1732918254020,-500.0,0.00028767,3]
[343721087,1732918254029,-591.82,0.00028767,3]
[343721088,1732918254038,-500.0,0.00028767,3]
[343721089,1732918254047,-500.0,0.00028767,3]
[343721090,1732918254056,-500.0,0.00028767,3]
[343721091,1732918254065,-500.0,0.00028767,3]
[343721092,1732918254075,-506.7914539,0.00028767,3]
[343721093,1732918254084,-500.0,0.00028767,3]
[343721094,1732918254093,-500.0,0.00028767,3]
[343721095,1732918254102,-500.0,0.00028767,3]
[343721096,1732918254112,-500.0,0.00028767,3]
[343721097,1732918254121,-500.0,0.00028767,3]
[343721098,1732918254130,-500.0,0.00028767,3]
[343721099,1732918254139,-500.0,0.00028767,3]
[343721100,1732918254148,-507.95885178,0.00028767,3]
[343721101,1732918254158,-206.49876854,0.00028767,3]
[343721104,1732918433508,163.891263,0.00013973,2]
[343721109,1732919205393,158.45181,0.00013973,2]
[343721110,1732919228179,-329.8082874,0.00019832,2]
[343721111,1732919244135,-4670.1917126,0.00019832,2]
[343721112,1732919244158,-3477.09359502,0.00020032,2]
[343721113,1732919244179,-191.2468088,0.0002033,2]
[343721114,1732919244201,-829.05786435,0.00020377,2]
[343721115,1732919244223,-158.45181,0.00020447,2]
[343721116,1732919244244,-300.0,0.00020471,2]
[343721117,1732919244265,-300.0,0.00020471,2]
[343721118,1732919244286,-8792.66309123,0.00020471,2]
[343721119,1732919245085,-1117.97134292,0.00020471,2]
[343721120,1732919248104,-847.07227407,0.00020471,2]
[343721121,1732919250136,-1378.66098086,0.00020471,2]
[343721123,1732919324510,67786.8356154,0.000109,2]
[343721124,1732919324540,13324.86394927,0.000109,2]
[343721125,1732919345167,-5000.0,0.00017424,2]
[343721126,1732919345187,-288.17590252,0.000176,2]
[343721127,1732919345208,-565.09958,0.00019329,2]
[343721128,1732919345231,-1411.1737559,0.00019474,2]
[343721129,1732919345251,-300.0,0.00019999,2]
[343721130,1732919345273,-300.0,0.00019999,2]
[343721131,1732919345294,-6795.51922676,0.0002,2]
[343721132,1732919345314,-4352.56048877,0.0002,2]
[343721133,1732919345334,-351.82925636,0.0002,2]
[343721134,1732919345355,-50577.0,0.0002,2]
[343721135,1732919345375,-58253.01236604,0.00020377,2]
[343721136,1732919345397,-500.0,0.00020469,2]
[343721137,1732919345418,-500.0,0.00020469,2]
[343721138,1732919345441,-500.0,0.00020469,2]
[343721139,1732919345476,-500.0,0.00020469,2]
[343721140,1732919345502,-500.0,0.00020469,2]
[343721141,1732919345525,-500.0,0.00020469,2]
[343721142,1732919345549,-500.0,0.00020469,2]
[343721143,1732919345573,-500.0,0.00020469,2]
[343721144,1732919345597,-500.0,0.00020469,2]
[343721145,1732919345620,-500.0,0.00020469,2]
[343721146,1732919345644,-456.54620196,0.00020469,2]
[343721147,1732919345669,-500.0,0.00020469,2]
[343721148,1732919345693,-500.0,0.00020469,2]
[343721149,1732919345719,-500.0,0.00020469,2]
[343721150,1732919345744,-500.0,0.00020469,2]
[343721151,1732919345769,-500.0,0.00020469,2]
[343721152,1732919345795,-500.0,0.00020469,2]
[343721153,1732919345817,-509.39483425,0.00020469,2]
[343721154,1732919345840,-500.0,0.00020469,2]
[343721155,1732919345864,-500.0,0.00020469,2]
[343721156,1732919345889,-608.89701826,0.00020469,2]
[343721157,1732919345913,-500.0,0.00020469,2]
[343721158,1732919345937,-500.0,0.00020469,2]
[343721159,1732919345959,-500.0,0.00020473,2]
[343721160,1732919345982,-441.29469664,0.00020473,2]
[343721161,1732919346003,-500.0,0.00020473,2]
[343721162,1732919346026,-501.15002246,0.00020473,2]
[343721163,1732919346050,-403.82798376,0.00020476,2]
[343721164,1732919346073,-5000.0,0.00020478,2]
[343721165,1732919346097,-24900.0,0.00020479,2]
[343721166,1732919346122,-351.47420715,0.00020544,2]
[343721167,1732919346144,-169.196596,0.00020644,2]
[343721168,1732919346166,-263.1876127,0.00020746,2]
[343721169,1732919346188,-169.484134,0.00020803,2]
[343721170,1732919346210,-524.205172,0.00021151,2]
[343721171,1732919346234,-420.0,0.00021777,2]
[343721172,1732919346256,-294.0,0.00021873,2]
[343721173,1732919346279,-5000.0,0.00021996,2]
[343721174,1732919346302,-420.0,0.00021999,2]
[343721175,1732919346323,-160.0,0.00022,2]
[343721176,1732919346347,-182.0,0.00022,2]
[343721177,1732919346368,-501.2213572,0.00022473,2]
[343721178,1732919346391,-500.0,0.00022473,2]
[343721179,1732919346415,-2544.24569024,0.00022574,2]
[343721180,1732919363098,-513.3054647,0.00020473,2]
[343721181,1732919363118,-390.24833483,0.00022348,2]
[343721182,1732919363140,-124.22704426,0.00022574,2]
[343721183,1732919365098,-1766.70220715,0.00022574,2]
[343721224,1732919432642,-564.82505835,0.00022574,2]
[343721226,1732919432652,-351.47420711,0.00022575,2]
[343721228,1732919432662,-205.922261,0.00024275,2]
[343721230,1732919432671,-351.47420711,0.00024606,2]
[343721232,1732919432681,-164.999,0.00024921,8]
[343721234,1732919432691,-1334.92797734,0.00025035,2]
[343721247,1732919432804,-94.11914156,0.00025035,2]
[343721343,1732919438617,-3570.9528811,0.00025035,2]
[343721344,1732919438627,-300.0,0.00025049,2]
[343721345,1732919438636,-300.0,0.00025049,2]
[343721346,1732919438645,-3325.4155865,0.0002505,2]
[343721347,1732919438655,-7754.5548837,0.0002509,2]
[343721348,1732919438663,-2493.8851655,0.00025121,30]
[343721349,1732919438672,-1000.5,0.00026,31]
[343721350,1732919438682,-375.3,0.00026,31]
[343721351,1732919438691,-9889.85413686,0.00026,10]
[343721352,1732919438700,-725.42563135,0.00026519,2]
[343721353,1732919438709,-351.47420711,0.00026636,2]
[343721354,1732919438718,-1627.08243952,0.00026669,2]
[343721355,1732919438858,-124.2190381,0.00026669,2]
[343721356,1732919438889,-153.18455343,0.00026669,2]
[343721357,1732919438901,-3095.51396895,0.00026669,2]
[343721358,1732919438910,-158.45181,0.00026921,2]
[343721359,1732919438920,-500.0,0.00027057,2]
[343721360,1732919438929,-334.37720381,0.00027057,2]
[343721361,1732919438939,-161.83846689,0.00027057,2]
[343721362,1732919438948,-32.08855035,0.00027057,2]
[343721384,1732919440587,-202.23334057,0.00027057,2]
[343721385,1732919440596,-92.43732315,0.00027058,2]
[343721387,1732919440694,-36.64536527,0.00027058,2]
[343721388,1732919440707,-596.34294287,0.00027058,2]
[343721389,1732919440716,-420.0,0.00027135,2]
[343721390,1732919440726,-500.0,0.00027499,2]
[343721391,1732919440736,-544.14335743,0.00027554,2]
[343721392,1732919440749,-420.0,0.00027554,2]
[343721393,1732919440759,-725.42563129,0.00027597,2]
[343721394,1732919440768,-531.0,0.00027626,2]
[343721395,1732919440777,-2178.0,0.00027626,2]
[343721396,1732919440788,-2377.0,0.00027626,2]
[343721397,1732919440797,-151.0,0.00027717,6]
[343721398,1732919440807,-617.0,0.00028,2]
[343721399,1732919440818,-1362.00296339,0.00028,7]
[343721426,1732919443553,-637.99703661,0.00028,7]
[343721427,1732919443563,-151.0,0.00028101,6]
[343721428,1732919443572,-725.42563129,0.00028136,2]
[343721429,1732919443582,-151.0,0.00028301,2]
[343721430,1732919443591,-151.0,0.00028484,6]
[343721432,1732919443601,-754.82519284,0.00028541,2]
[343721434,1732919443612,-4245.17480716,0.00028541,2]
[343721435,1732919443622,-1225.96823349,0.00028542,30]
[343721437,1732919443633,-1274.03176651,0.00028542,30]
[343721438,1732919443643,-3737.45046287,0.00028567,7]
[343721442,1732919446572,-2079.856098,0.00028567,7]
[343721443,1732919446629,-6050.77872787,0.00028567,7]
[343721444,1732919446637,-304.19,0.000286,31]
[343721445,1732919446647,-304.19,0.000286,31]
[343721446,1732919446656,-142.06448776,0.000286,31]
[343721458,1732919810951,158.873207,0.00013973,2]
[343721463,1732920059415,-2000.0,0.00019865,2]
[343721464,1732920133939,-169.807439,0.00019236,2]
[343721465,1732920133965,-306.65373942,0.00019865,2]
[343721466,1732920143519,1523.53882158,0.00019692,2]
[343721470,1732920349144,-250.0,0.00019495,2]
[343721471,1732920349167,-83.25863277,0.00019691,2]
[343721475,1732920433237,-566.465455,0.00019483,2]
[343721476,1732920433260,-300.0,0.00019691,2]
[343721477,1732920433282,-300.0,0.00019691,2]
[343721478,1732920433303,-2204.20896322,0.00019692,2]
[343721481,1732920545109,-300.0,0.00019691,2]
[343721482,1732920545134,-300.0,0.00019691,2]
[343721483,1732920545156,-13090.4792648,0.00019692,2]
[343721484,1732920545177,-5000.0,0.00019999,2]
[343721485,1732920545196,-8714.0,0.0002,2]
[343721486,1732920545217,-152.0,0.00020353,2]
[343721487,1732920545238,-981.68790347,0.0002041,2]
[343721488,1732920545259,-5000.0,0.00020509,2]
[343721489,1732920545280,-500.0,0.00020509,2]
[343721490,1732920545301,-500.0,0.00020509,2]
[343721491,1732920545322,-500.0,0.00020509,2]
[343721492,1732920545343,-550.80490813,0.00020509,2]
[343721493,1732920545364,-500.0,0.00020509,2]
[343721494,1732920545385,-500.0,0.00020509,2]
[343721495,1732920545408,-500.0,0.00020509,2]
[343721496,1732920545429,-500.0,0.00020509,2]
[343721497,1732920545451,-500.0,0.00020509,2]
[343721498,1732920545472,-168.83910662,0.00020509,2]
[343721499,1732920545492,-500.0,0.00020509,2]
[343721500,1732920545513,-500.0,0.00020509,2]
[343721501,1732920545535,-500.0,0.00020509,2]
[343721502,1732920545556,-500.0,0.00020509,2]
[343721503,1732920545577,-500.0,0.00020509,2]
[343721504,1732920545598,-500.0,0.00020509,2]
[343721505,1732920545748,-500.0,0.00020509,2]
[343721506,1732920545769,-234.11060407,0.00020509,2]
[343721507,1732920545790,-500.0,0.00020509,2]
[343721508,1732920545810,-500.0,0.00020509,2]
[343721509,1732920545830,-500.0,0.00020509,2]
[343721510,1732920545850,-521.00507058,0.00020509,2]
[343721511,1732920545872,-500.0,0.00020509,2]
[343721512,1732920545892,-500.0,0.00020509,2]
[343721513,1732920545912,-500.0,0.00020509,2]
[343721514,1732920545932,-500.0,0.00020509,2]
[343721515,1732920545952,-5000.0,0.0002051,2]
[343721516,1732920545971,-1093.94595368,0.0002051,2]
[343721517,1732920545992,-24900.0,0.00020511,2]
[343721518,1732920546012,-500.0,0.00020573,2]
[343721519,1732920546032,-163.10200991,0.00020573,2]
[343721520,1732920546051,-160.16517606,0.00020573,2]
[343721521,1732920546070,-159.15683555,0.00020573,2]
[343721522,1732920546092,-500.0,0.00020573,2]
[343721523,1732920546111,-499.90046306,0.00020573,2]
[343721524,1732920546132,-500.0,0.00020573,2]
[343721525,1732920546152,-500.0,0.00020573,2]
[343721526,1732920546172,-163.199976,0.00020876,2]
[343721527,1732920546193,-1000.0,0.00021121,2]
[343721528,1732920546213,-163.199976,0.00021137,2]
[343721529,1732920546233,-163.199976,0.00021397,2]
[343721530,1732920546254,-420.0,0.00021448,2]
[343721531,1732920546274,-163.199976,0.00021657,2]
[343721532,1732920546294,-420.0,0.0002166,2]
[343721533,1732920546314,-981.68790346,0.00021821,2]
[343721534,1732920546334,-163.199976,0.00021917,2]
[343721535,1732920546353,-183.0,0.00022,2]
[343721536,1732920546373,-500.0,0.00022122,2]
[343721537,1732920546393,-163.199976,0.00022177,2]
[343721538,1732920546412,-163.199976,0.00022437,2]
[343721539,1732920546432,-183.0,0.00023014,2]
[343721540,1732920546452,-981.68790346,0.00023232,2]
[343721541,1732920546472,-3713.49350903,0.00023302,2]
[343721542,1732920546514,-1286.50649097,0.00023302,2]
[343721543,1732920546535,-587.0,0.00023362,2]
[343721544,1732920546555,-158.460326,0.00023562,2]
[343721545,1732920546575,-587.0,0.00023826,2]
[343721546,1732920546596,-981.68790346,0.00024643,2]
[343721547,1732920546616,-198.0918699,0.00024658,2]
[343721548,1732920546637,-158.460326,0.00024724,2]
[343721549,1732920548952,158.873207,0.00013973,2]
[343721550,1732920549157,158.873207,0.00020807,2]
[343721617,1732920631895,-181.553,0.00024911,8]
[343721618,1732920631905,-158.460326,0.00025886,2]
[343721619,1732920631914,-158.460326,0.00027049,2]
[343721620,1732920631923,-120.42634804,0.00027397,2]
[343721635,1732920637926,-1411.5286838,0.00026669,2]
[343721636,1732920637937,-108.4948789,0.00027397,2]
[343721637,1732920638318,-271.07877306,0.00027397,2]
[343721638,1732920638330,-300.0,0.00027608,2]
[343721640,1732920638344,-300.0,0.00027608,2]
[343721642,1732920638355,-150.0,0.00027609,2]
[343721643,1732920638365,-531.0,0.00027609,2]
[343721645,1732920638376,-2377.0,0.00027609,2]
[343721647,1732920638387,-2178.0,0.00027609,2]
[343721648,1732920638397,-158.873207,0.00027641,2]
[343721650,1732920638408,-5000.0,0.00028143,2]
[343721652,1732920638419,-6534.24801994,0.00028198,2]
[343721700,1732920639160,-374.5193798,0.00028198,2]
[343721723,1732920639957,-53.30580939,0.00028198,2]
[343721724,1732920639967,-461.08945826,0.000282,2]
[343721725,1732920639978,-152.91054174,0.000282,2]
[343721726,1732920639987,-151.0,0.0002839,6]
[343721727,1732920639997,-6962.07320913,0.00028435,2]
[343721728,1732920640007,-296.76,0.000286,31]
[343721729,1732920640017,-296.76,0.000286,31]
[343721730,1732920640026,-296.76,0.000286,31]
[343721731,1732920640035,-296.76,0.000286,31]
[343721732,1732920640044,-296.76,0.000286,31]
[343721733,1732920640054,-296.76,0.000286,31]
[343721734,1732920640063,-296.76,0.000286,31]
[343721735,1732920640073,-296.76,0.000286,31]
[343721736,1732920640082,-296.76,0.000286,31]
[343721737,1732920640092,-296.76,0.000286,31]
[343721738,1732920640103,-296.76,0.000286,31]
[343721739,1732920640115,-296.76,0.000286,31]
[343721740,1732920640124,-5000.0,0.00028611,2]
[343721741,1732920640134,-2500.0,0.00028612,15]
[343721742,1732920640146,-394.53387868,0.00028665,2]
[343721743,1732920640156,-192.67895601,0.00028665,2]
[343721744,1732920640165,-463.20434518,0.00028665,2]
[343721745,1732920640174,-335.66723007,0.00028665,2]
[343721746,1732920640187,-175.73710356,0.00028666,2]
[343721747,1732920640197,-7282.87379346,0.00028667,2]
[343721748,1732920640206,-729.29730246,0.00028667,2]
[343721749,1732920640216,-175.73710355,0.00028667,2]
[343721750,1732920640225,-666.0,0.00028667,2]
[343721751,1732920640235,-300.457444,0.000287,14]
[343721752,1732920640244,-500.0,0.000287,28]
[343721753,1732920640253,-5000.0,0.00028754,2]
[343721754,1732920640262,-3300.86,0.00028757,10]
[343721755,1732920640271,-156.66,0.00028757,3]
[343721756,1732920640280,-2750.72,0.00028757,10]
[343721757,1732920640290,-5000.0,0.00028765,2]
[343721758,1732920640300,-1123.72974776,0.00028766,2]
[343721759,1732920640310,-2972.960727,0.00028766,2]
[343721760,1732920640319,-575.65190354,0.00028766,2]
[343721761,1732920640329,-173.83974589,0.00028766,2]
[343721762,1732920640339,-191.801278,0.00028766,2]
[343721763,1732920640350,-14666.91102235,0.00028767,2]
[343721764,1732920640359,-151.0,0.00028767,7]
[343721765,1732920640368,-151.0,0.00028767,7]
[343721766,1732920640377,-151.0,0.00028767,7]
[343721767,1732920640387,-197.228952,0.00028767,7]
[343721768,1732920640397,-249.655656,0.00028767,7]
[343721769,1732920640406,-500.0,0.00028767,3]
[343721770,1732920640415,-500.0,0.00028767,3]
[343721771,1732920640424,-500.0,0.00028767,3]
[343721772,1732920640434,-500.0,0.00028767,3]
[343721773,1732920640443,-500.0,0.00028767,3]
[343721774,1732920640452,-500.0,0.00028767,3]
[343721775,1732920640461,-247.58859987,0.00028767,3]
[343721776,1732920640470,-500.0,0.00028767,3]
[343721777,1732920640479,-500.0,0.00028767,3]
[343721778,1732920640488,-500.0,0.00028767,3]
[343721779,1732920640498,-500.0,0.00028767,3]
[343721780,1732920640507,-500.0,0.00028767,3]
[343721781,1732920640516,-500.0,0.00028767,3]
[343721782,1732920640525,-500.0,0.00028767,3]
[343721783,1732920640534,-500.0,0.00028767,3]
[343721784,1732920640543,-500.0,0.00028767,3]
[343721785,1732920640552,-500.0,0.00028767,3]
[343721786,1732920640560,-500.0,0.00028767,3]
[343721787,1732920640569,-500.0,0.00028767,3]
[343721788,1732920640578,-500.0,0.00028767,3]
[343721789,1732920640587,-500.0,0.00028767,3]
[343721790,1732920640596,-411.0188132,0.00028767,3]
[343721791,1732920640605,-600.98578332,0.00028767,3]
[343721792,1732920640615,-151.0,0.00028767,7]
[343721793,1732920640625,-500.0,0.00028767,3]
[343721794,1732920640634,-500.0,0.00028767,3]
[343721795,1732920640643,-500.0,0.00028767,3]
[343721796,1732920640652,-500.0,0.00028767,3]
[343721797,1732920640661,-500.0,0.00028767,3]
[343721798,1732920640670,-500.0,0.00028767,3]
[343721799,1732920640680,-500.0,0.00028767,3]
[343721801,1732920640689,-500.0,0.00028767,3]
[343721803,1732920640699,-500.0,0.00028767,3]
[343721805,1732920640708,-500.0,0.00028767,3]
[343721806,1732920640717,-500.0,0.00028767,3]
[343721807,1732920640727,-500.0,0.00028767,3]
[343721809,1732920640737,-500.0,0.00028767,3]
[343721810,1732920640747,-276.77625652,0.00028767,3]
[343721811,1732920640757,-500.0,0.00028767,3]
[343721812,1732920640766,-500.0,0.00028767,3]
[343721814,1732920640776,-500.0,0.00028767,3]
[343721815,1732920640786,-402.00952747,0.00028767,3]
[343721816,1732920640796,-500.0,0.00028767,3]
[343721817,1732920640806,-500.0,0.00028767,3]
[343721818,1732920640816,-500.0,0.00028767,3]
[343721820,1732920640826,-500.0,0.00028767,3]
[343721822,1732920640836,-500.0,0.00028767,3]
[343721824,1732920640846,-500.0,0.00028767,3]
[343721825,1732920640856,-500.0,0.00028767,3]
[343721826,1732920640866,-216.43899052,0.00028767,3]
[343721827,1732920640876,-500.0,0.00028767,3]
[343721828,1732920640886,-500.0,0.00028767,3]
[343721829,1732920640896,-500.0,0.00028767,3]
[343721830,1732920640905,-500.0,0.00028767,3]
[343721832,1732920640915,-500.0,0.00028767,3]
[343721833,1732920640925,-500.0,0.00028767,3]
[343721834,1732920640934,-504.89856016,0.00028767,3]
[343721835,1732920640943,-500.0,0.00028767,3]
[343721836,1732920640953,-500.0,0.00028767,3]
[343721837,1732920640963,-500.0,0.00028767,3]
[343721838,1732920640972,-500.0,0.00028767,3]
[343721839,1732920640982,-516.46850184,0.00028767,3]
[343721840,1732920640992,-500.0,0.00028767,3]
[343721841,1732920641001,-500.0,0.00028767,3]
[343721842,1732920641010,-241.67165383,0.00028767,3]
[343721843,1732920641019,-500.0,0.00028767,3]
[343721844,1732920641028,-500.0,0.00028767,3]
[343721845,1732920641038,-500.0,0.00028767,3]
[343721846,1732920641047,-500.0,0.00028767,3]
[343721847,1732920641057,-500.0,0.00028767,3]
[343721848,1732920641066,-500.0,0.00028767,3]
[343721849,1732920641076,-338.73677912,0.00028767,3]
[343721850,1732920641086,-500.0,0.00028767,3]
[343721851,1732920641096,-500.0,0.00028767,3]
[343721852,1732920641109,-500.0,0.00028767,3]
[343721853,1732920641119,-500.0,0.00028767,3]
[343721854,1732920641129,-500.0,0.00028767,3]
[343721855,1732920641141,-277.28467048,0.00028767,3]
[343721856,1732920641151,-500.0,0.00028767,3]
[343721857,1732920641161,-500.0,0.00028767,3]
[343721858,1732920641171,-500.0,0.00028767,3]
[343721859,1732920641182,-500.0,0.00028767,3]
[343721860,1732920641192,-634.44587323,0.00028767,3]
[343721861,1732920641202,-552.35633233,0.00028767,3]
[343721862,1732920641212,-559.37584125,0.00028767,3]
[343721863,1732920641221,-500.0,0.00028767,3]
[343721864,1732920641230,-560.44,0.00028767,3]
[343721865,1732920641239,-500.0,0.00028767,3]
[343721866,1732920641248,-500.0,0.00028767,3]
[343721867,1732920641258,-500.0,0.00028767,3]
[343721868,1732920641268,-500.0,0.00028767,3]
[343721869,1732920641278,-500.0,0.00028767,3]
[343721870,1732920641288,-175.7159709,0.00028767,3]
[343721871,1732920641298,-500.0,0.00028767,3]
[343721872,1732920641308,-203.90209121,0.00028767,3]
[343721873,1732920641319,-500.0,0.00028767,3]
[343721874,1732920641329,-500.0,0.00028767,3]
[343721875,1732920641339,-500.0,0.00028767,3]
[343721876,1732920641349,-500.0,0.00028767,3]
[343721877,1732920641359,-500.0,0.00028767,3]
[343721878,1732920641369,-500.0,0.00028767,3]
[343721879,1732920641379,-500.0,0.00028767,3]
[343721880,1732920641388,-500.0,0.00028767,3]
[343721881,1732920641398,-500.0,0.00028767,3]
[343721882,1732920641408,-500.0,0.00028767,3]
[343721883,1732920641417,-500.0,0.00028767,3]
[343721884,1732920641428,-500.0,0.00028767,3]
[343721885,1732920641437,-532.94324119,0.00028767,3]
[343721886,1732920641447,-503.08017859,0.00028767,3]
[343721887,1732920641456,-500.0,0.00028767,3]
[343721888,1732920641466,-500.0,0.00028767,3]
[343721889,1732920641476,-501.54774447,0.00028767,3]
[343721890,1732920641485,-500.0,0.00028767,3]
[343721891,1732920641494,-500.0,0.00028767,3]
[343721892,1732920641504,-500.0,0.00028767,3]
[343721893,1732920641513,-500.0,0.00028767,3]
[343721894,1732920641522,-500.0,0.00028767,3]
[343721895,1732920641531,-500.0,0.00028767,3]
[343721896,1732920641541,-283.0724354,0.00028767,3]
[343721897,1732920641551,-501.69809142,0.00028767,3]
[343721898,1732920641561,-500.0,0.00028767,3]
[343721899,1732920641572,-500.0,0.00028767,3]
[343721900,1732920641581,-500.0,0.00028767,3]
[343721901,1732920641591,-500.0,0.00028767,3]
[343721902,1732920641600,-500.0,0.00028767,3]
[343721903,1732920641610,-500.0,0.00028767,3]
[343721904,1732920641620,-500.0,0.00028767,3]
[343721905,1732920641630,-500.0,0.00028767,3]
[343721906,1732920641641,-540.9377545,0.00028767,3]
[343721907,1732920641651,-500.0,0.00028767,3]
[343721908,1732920641661,-500.0,0.00028767,3]
[343721909,1732920641670,-514.31470326,0.00028767,3]
[343721910,1732920641678,-500.0,0.00028767,3]
[343721911,1732920641688,-500.0,0.00028767,3]
[343721912,1732920641697,-500.0,0.00028767,3]
[343721913,1732920641706,-500.0,0.00028767,3]
[343721914,1732920641715,-500.0,0.00028767,3]
[343721915,1732920641725,-500.0,0.00028767,3]
[343721916,1732920641735,-500.0,0.00028767,3]
[343721917,1732920641745,-509.39512445,0.00028767,3]
[343721918,1732920641755,-500.0,0.00028767,3]
[343721919,1732920641765,-500.0,0.00028767,3]
[343721920,1732920641775,-500.0,0.00028767,3]
[343721921,1732920641784,-556.23211671,0.00028767,3]